bitfinex/quotes_SOLUSD_20250724
["timestamp","ask_amount","ask_price","bid_price","bid_amount"]
[1753362323393,8.89180278,186.22,186.21,0.06]
[1753362325207,5.89775354,186.3,186.21,0.73]
[1753362325372,8.89180278,186.27,186.22,8.89180278]
[1753362325689,8.89180278,186.28,186.23,0.67]
[1753362325886,8.89180278,186.26,186.23,0.67]
[1753362326388,8.89180278,186.26,186.23,6.03967633]
[1753362326887,8.89180278,186.26,186.24,0.67]
[1753362327290,8.89180278,186.27,186.24,0.67]
[1753362327480,17.06900711,186.24,186.2,0.02]
[1753362327683,0.28432314,186.15,186.14,0.06]
[1753362327867,5.65720085,186.12,186.1,0.02]
[1753362328073,9.22180278,186.11,186.1,0.02]
[1753362328767,8.89180278,186.11,186.1,0.02]
[1753362329274,8.89180278,186.12,186.1,0.69]
[1753362329675,8.89180278,186.13,186.11,0.67]
[1753362329994,8.89180278,186.14,186.12,0.67]
[1753362330896,8.89180278,186.13,186.11,26.0]
[1753362331188,13.60208575,186.13,186.11,26.0]
[1753362331606,43.95112583,186.19,186.12,0.67]
[1753362331775,13.60208575,186.16,186.12,0.67]
[1753362332202,13.60208575,186.16,186.13,5.37258905]
[1753362332574,13.60208575,186.16,186.14,0.67]
[1753362332972,13.60208575,186.16,186.11,32.04311585]
[1753362333168,13.60208575,186.15,186.12,0.67]
[1753362333366,13.60208575,186.15,186.1,0.02]
[1753362333367,13.60208575,186.13,186.1,0.02]
[1753362333593,16.78468397,186.1,185.96,12.32867637]
[1753362333781,27.2041715,186.03,185.96,1e-08]
[1753362333982,65.8041715,186.03,185.96,1e-08]
[1753362334181,13.60208575,185.97,185.96,1e-08]
[1753362334595,52.22208575,185.97,185.96,1e-08]
[1753362334793,69.11676972,185.97,185.96,1e-08]
[1753362335091,17.06900711,185.96,185.92,0.06]
[1753362335293,13.60208575,185.93,185.92,0.06]
[1753362335692,13.71208575,185.93,185.92,0.06]
[1753362336293,19.09045395,185.93,185.92,0.06]
[1753362337171,57.75045395,185.93,185.92,0.06]
[1753362337797,57.75045395,185.93,185.9,0.2]
[1753362337980,13.60208575,185.91,185.9,0.2]
[1753362340478,52.28208575,185.86,185.85,0.06]
[1753362340679,52.39208575,185.86,185.85,0.06]
[1753362340893,55.19867441,185.86,185.85,0.06]
[1753362341492,60.57906825,185.86,185.85,0.06]
[1753362341888,60.46906825,185.86,185.85,0.06]
[1753362342079,2.80658866,185.86,185.85,0.06]
[1753362342300,13.60208575,185.87,185.85,0.73]
[1753362342603,13.60208575,185.86,185.85,0.06]
[1753362344405,13.60208575,185.86,185.85,0.73]
[1753362344698,13.60208575,185.86,185.85,0.06]
[1753362345588,19.09247959,185.86,185.85,0.06]
[1753362346300,18.98247959,185.86,185.85,0.06]
[1753362346503,57.74247959,185.86,185.85,0.06]
[1753362349814,52.36208575,185.86,185.85,0.06]
[1753362350024,52.36208575,185.86,185.85,0.73]
[1753362350311,38.76,185.86,185.85,0.73]
[1753362350518,52.36208575,185.86,185.85,0.73]
[1753362351183,57.74247959,185.86,185.85,0.06]
[1753362353606,52.36208575,185.86,185.85,0.06]
[1753362353911,52.32208575,185.9,185.85,40.33208575]
[1753362354211,52.32208575,185.9,185.87,26.0]
[1753362354398,13.60208575,185.94,185.88,40.27208575]
[1753362354596,13.60208575,185.93,185.88,26.67]
[1753362354925,13.60208575,185.93,185.89,0.67]
[1753362355117,13.60208575,185.93,185.88,39.60208575]
[1753362355321,13.60208575,185.93,185.89,0.67]
[1753362355623,13.60208575,185.93,185.88,26.0]
[1753362355624,13.60208575,185.93,185.9,26.67]
[1753362356685,2.80492827,185.97,185.9,26.67]
[1753362356686,16.40701402,185.97,185.92,13.60208575]
[1753362356885,52.32208575,185.97,185.93,0.67]
[1753362357081,13.60208575,185.94,185.9,26.67]
[1753362357384,13.60208575,185.92,185.9,26.67]
[1753362357793,13.60208575,185.93,185.9,26.67]
[1753362358106,52.34208575,185.94,185.91,0.67]
[1753362358307,38.74,185.94,185.92,0.67]
[1753362358517,13.60208575,185.95,185.93,0.67]
[1753362359014,13.60208575,185.95,185.9,44.98124701]
[1753362359198,52.34208575,185.96,185.94,0.67]
[1753362360305,52.34208575,185.96,185.95,0.67]
[1753362360306,38.74,185.96,185.95,0.67]
[1753362360612,38.72,186.0,185.96,0.28432314]
[1753362360814,52.32208575,186.03,185.99,26.0]
[1753362361113,13.60208575,186.02,186.0,0.67]
[1753362361811,5.37438458,186.07,186.01,0.67]
[1753362362012,52.34208575,186.06,186.01,14.27208575]
[1753362362204,0.03,186.04,186.02,0.67]
[1753362362410,0.03,186.04,186.03,0.67]
[1753362362714,0.03,186.04,185.99,32.0608]
[1753362362920,0.03,186.04,186.03,26.0]
[1753362363122,0.03,186.04,186.03,13.60208575]
[1753362363289,38.74,186.09,186.06,26.0]
[1753362363492,13.60208575,186.1,186.07,0.67]
[1753362363893,38.74,186.11,186.08,0.67]
[1753362364088,38.74,186.11,186.09,0.67]
[1753362364317,13.60208575,186.12,186.09,0.67]
[1753362364710,18.97506293,186.12,186.09,0.67]
[1753362364919,13.60208575,186.1,186.09,26.0]
[1753362365209,13.60208575,186.11,186.09,26.0]
[1753362365601,13.60208575,186.11,186.08,26.0]
[1753362365798,18.97506293,186.12,186.09,26.67]
[1753362366116,38.77,186.13,186.09,26.67]
[1753362366117,52.37208575,186.13,186.1,0.67]
[1753362366415,57.74469313,186.13,186.1,0.67]
[1753362366791,13.60208575,186.11,186.09,26.0]
[1753362366994,13.60208575,186.11,186.07,0.67]
[1753362367208,13.60208575,186.11,186.08,26.0]
[1753362367409,0.03,186.13,186.1,13.60208575]
[1753362367613,13.63208575,186.13,186.1,26.0]
[1753362367800,13.63208575,186.13,186.1,26.67]
[1753362367996,19.0047828,186.13,186.1,26.67]
[1753362368214,19.0047828,186.13,186.1,0.67]
[1753362368905,19.0047828,186.13,186.11,14.29208575]
[1753362368906,0.03,186.13,186.11,14.29208575]
[1753362369108,0.03,186.13,186.12,0.69]
[1753362369994,0.03,186.13,186.09,39.60208575]
[1753362370321,0.03,186.13,186.1,0.69]
[1753362370716,0.03,186.13,186.11,0.69]
[1753362371040,13.63208575,186.13,186.09,26.69]
[1753362371321,13.63208575,186.13,186.11,26.0]
[1753362371322,13.60208575,186.12,186.11,26.0]
[1753362371814,13.60208575,186.12,186.09,0.69]
[1753362372117,0.03,186.13,186.07,13.60208575]
[1753362372316,13.60208575,186.12,186.08,0.69]
[1753362372507,13.60208575,186.12,186.09,0.69]
[1753362372703,18.97575979,186.1,186.05,0.69]
[1753362372904,0.03,186.13,186.06,14.29208575]
[1753362373112,52.31208575,186.13,186.07,30.38676972]
[1753362373314,38.71,186.13,186.09,13.60208575]
[1753362373494,38.71,186.13,186.1,0.69]
[1753362373823,0.03,186.13,186.12,26.0]
[1753362373996,0.03,186.13,186.12,40.29208575]
[1753362374398,0.03,186.13,186.12,57.36109286]
[1753362374605,0.03,186.14,186.13,17.06900711]
[1753362374801,0.03,186.14,186.13,36.73368191]
[1753362375701,0.03,186.14,186.13,31.36109286]
[1753362375918,0.03,186.14,186.13,14.29208575]
[1753362376120,0.03,186.14,186.13,19.6646748]
[1753362376421,0.03,186.14,186.13,14.29208575]
[1753362377009,0.03,186.14,186.13,37.27094081]
[1753362377310,0.03,186.14,186.13,14.29208575]
[1753362377815,0.03,186.14,186.13,36.73368191]
[1753362378022,0.03,186.14,186.13,37.27094081]
[1753362378225,0.2,186.15,186.14,56.67109286]
[1753362378428,0.2,186.15,186.14,57.36109286]
[1753362379029,0.2,186.15,186.14,62.73339327]
[1753362379204,0.2,186.15,186.14,32.02100615]
[1753362379599,0.2,186.15,186.14,121.02100615]
[1753362380524,0.2,186.15,186.14,33.63630615]
[1753362380730,0.2,186.15,186.14,34.17353619]
[1753362381022,0.2,186.15,186.14,33.63630615]
[1753362381509,0.2,186.15,186.14,72.29630615]
[1753362381711,0.2,186.15,186.14,33.63630615]
[1753362382031,0.2,186.15,186.14,72.29630615]
[1753362383013,0.2,186.15,186.14,72.83353619]
[1753362383837,0.2,186.15,186.14,72.29630615]
[1753362384039,0.2,186.15,186.14,70.68100615]
[1753362386061,0.2,186.15,186.14,159.68100615]
[1753362387123,1e-08,186.15,186.14,159.68100615]
[1753362388520,1e-08,186.17,186.16,43.06900711]
[1753362388722,1e-08,186.17,186.16,91.09587806]
[1753362389016,1e-08,186.17,186.16,91.78587806]
[1753362389432,1e-08,186.17,186.16,91.76587806]
[1753362390636,1e-08,186.17,186.16,97.1376013]
[1753362391256,0.03,186.21,186.19,16.78468397]
[1753362391553,0.03,186.21,186.2,65.07576266]
[1753362391723,0.03,186.21,186.2,27.18576266]
[1753362391924,0.03,186.21,186.2,26.0]
[1753362392143,9.11969863,186.21,186.13,8.88969863]
[1753362392340,8.88969863,186.17,186.11,14.95280392]
[1753362392548,0.03,186.21,186.09,0.06]
[1753362392549,8.88969863,186.14,186.09,0.06]
[1753362392847,8.88969863,186.14,186.1,64.6]
[1753362393025,8.88969863,186.15,186.1,38.6]
[1753362393348,5.37148762,186.17,186.11,35.57969863]
[1753362393523,8.88969863,186.16,186.12,38.6]
[1753362394054,8.88969863,186.19,186.13,35.57969863]
[1753362394357,8.91969863,186.21,186.17,26.0]
[1753362394523,0.03,186.21,186.17,26.0]
[1753362394727,0.03,186.21,186.17,26.69]
[1753362395035,0.03,186.21,186.19,8.88969863]
[1753362395234,0.03,186.21,186.15,0.69]
[1753362395544,0.03,186.21,186.18,26.0]
[1753362395545,9.11969863,186.21,186.18,26.0]
[1753362395938,8.91969863,186.21,186.18,26.0]
[1753362396246,0.03,186.21,186.19,8.88969863]
[1753362396548,0.03,186.21,186.18,26.0]
[1753362396549,0.03,186.21,186.18,73.50969863]
[1753362396743,8.91969863,186.21,186.19,26.0]
[1753362397239,9.08969863,186.2,186.14,9.17402177]
[1753362397445,8.88969863,186.17,186.11,8.88969863]
[1753362397752,8.88969863,186.17,186.15,26.0]
[1753362398045,9.08969863,186.16,186.12,26.0]
[1753362398249,8.88969863,186.16,186.13,26.0]
[1753362398922,8.88969863,186.16,186.14,26.0]
[1753362399128,14.26143267,186.16,186.14,26.0]
[1753362399540,14.26143267,186.16,186.13,26.0]
[1753362399742,8.88969863,186.15,186.1,47.50969863]
[1753362399951,8.88969863,186.14,186.1,38.62]
[1753362400132,8.88969863,186.14,186.1,64.62]
[1753362401077,14.26213574,186.14,186.1,64.62]
[1753362401250,8.88969863,186.14,186.1,65.33]
[1753362401549,8.88969863,186.15,186.1,70.70339185]
[1753362402635,8.88969863,186.17,186.11,9.88402177]
[1753362402937,8.88969863,186.15,186.11,0.99432314]
[1753362403141,8.88969863,186.16,186.12,0.71]
[1753362403736,8.88969863,186.15,186.12,89.0]
[1753362404044,8.88969863,186.13,186.12,89.0]
[1753362404355,5.37179625,186.16,186.12,89.0]
[1753362404356,8.88969863,186.14,186.12,89.0]
[1753362404534,5.37179625,186.16,186.12,89.0]
[1753362404535,8.88969863,186.15,186.12,89.0]
[1753362405252,8.88969863,186.16,186.13,0.71]
[1753362405641,8.88969863,186.16,186.12,89.0]
[1753362406030,8.88969863,186.17,186.13,0.71]
[1753362406450,8.88969863,186.19,186.16,26.0]
[1753362406951,8.88969863,186.19,186.16,26.71]
[1753362407152,8.91969863,186.21,186.17,0.71]
[1753362407449,8.91969863,186.21,186.19,34.88969863]
[1753362407450,0.03,186.21,186.19,34.88969863]
[1753362407758,0.03,186.21,186.19,26.0]
[1753362408752,0.03,186.21,186.19,26.71]
[1753362408928,0.03,186.21,186.2,9.59969863]
[1753362409130,0.03,186.21,186.2,0.71]
[1753362409345,0.03,186.21,186.19,73.44969863]
[1753362409346,0.03,186.21,186.19,64.56]
[1753362409561,0.03,186.21,186.2,9.59969863]
[1753362409764,0.03,186.21,186.2,26.66870574]
[1753362409933,0.03,186.23,186.22,22.43899959]
[1753362410134,0.03,186.27,186.25,26.0]
[1753362410334,0.03,186.27,186.26,8.88969863]
[1753362410669,0.03,186.27,186.25,74.17969863]
[1753362411733,0.03,186.27,186.26,0.71]
[1753362412271,0.03,186.27,186.26,15.5054218]
[1753362412435,0.03,186.27,186.26,58.57442891]
[1753362412634,0.03,186.27,186.26,32.03754499]
[1753362413344,0.03,186.27,186.26,32.57442891]
[1753362414737,0.03,186.27,186.26,121.57442891]
[1753362414938,0.03,186.27,186.26,121.03754499]
[1753362415455,0.03,186.27,186.26,127.36554499]
[1753362415667,0.2,186.34,186.3,42.78468397]
[1753362415836,0.2,186.34,186.33,34.88969863]
[1753362416162,0.2,186.34,186.33,73.40969863]
[1753362416351,0.2,186.34,186.33,74.11969863]
[1753362416533,0.2,186.34,186.33,64.52]
[1753362416734,0.2,186.34,186.32,64.5]
[1753362417465,5.56653776,186.34,186.32,64.5]
[1753362417759,0.2,186.34,186.32,64.5]
[1753362418169,0.2,186.34,186.33,9.59969863]
[1753362420173,0.2,186.34,186.32,69.86693345]
[1753362420174,0.2,186.34,186.32,34.88969863]
[1753362420362,8.88969863,186.33,186.27,0.71]
[1753362420538,8.88969863,186.33,186.3,26.0]
[1753362420742,8.88969863,186.33,186.28,38.5]
[1753362420743,5.82663372,186.34,186.31,26.0]
[1753362420961,10.49409863,186.32,186.2,6.4465]
[1753362421141,8.88969863,186.23,186.19,0.71]
[1753362421465,6.7178,186.31,186.22,26.0]
[1753362421466,8.88969863,186.24,186.22,26.0]
[1753362421838,8.88969863,186.23,186.19,39.29]
[1753362422035,8.88969863,186.23,186.19,64.58]
[1753362422260,8.88969863,186.24,186.19,70.66077619]
[1753362422444,0.26,186.28,186.19,70.66077619]
[1753362422445,8.88969863,186.25,186.2,0.71]
[1753362422653,8.88969863,186.25,186.21,0.71]
[1753362423143,8.88969863,186.25,186.22,0.71]
[1753362423866,8.88969863,186.25,186.19,47.46969863]
[1753362423867,8.88969863,186.24,186.19,64.58]
[1753362424168,8.88969863,186.23,186.19,64.58]
[1753362424364,5.3691762,186.25,186.21,26.0]
[1753362424664,6.4578,186.31,186.21,26.0]
[1753362424665,8.88969863,186.32,186.27,26.0]
[1753362424863,0.2,186.34,186.3,26.0]
[1753362425183,0.2,186.34,186.3,26.71]
[1753362425355,0.2,186.34,186.31,0.71]
[1753362425541,14.45623649,186.34,186.3,26.0]
[1753362425965,5.56653786,186.34,186.3,26.71]
[1753362426153,0.2,186.34,186.3,26.0]
[1753362426466,9.08969863,186.34,186.3,26.71]
[1753362426863,9.08969863,186.34,186.27,39.31]
[1753362426864,8.88969863,186.33,186.27,39.31]
[1753362427063,8.88969863,186.32,186.3,26.0]
[1753362427572,5.82655175,186.34,186.3,34.88969863]
[1753362427573,0.2,186.34,186.3,34.88969863]
[1753362427742,0.2,186.34,186.31,9.59969863]
[1753362428445,0.2,186.34,186.32,9.59969863]
[1753362428975,0.2,186.34,186.33,0.7]
[1753362429353,0.2,186.34,186.33,58.56221027]
[1753362429660,0.2,186.34,186.33,97.14221027]
[1753362430661,0.2,186.34,186.33,71.14221027]
[1753362434947,0.2,186.34,186.33,71.10221027]
[1753362435660,0.2,186.34,186.33,160.10221027]
[1753362435972,1e-08,186.34,186.33,176.15322667]
[1753362436567,1e-08,186.34,186.33,167.26352804]
[1753362438954,1e-08,186.34,186.33,39.4392049]
[1753362439164,1e-08,186.34,186.33,69.04950627]
[1753362439370,1e-08,186.34,186.33,76.57712804]
[1753362441059,1e-08,186.34,186.33,77.11381027]
[1753362441273,1e-08,186.34,186.33,86.0035089]
[1753362441775,1e-08,186.34,186.33,175.0035089]
[1753362442071,1e-08,186.34,186.33,38.07712804]
[1753362442372,1e-08,186.34,186.33,22.15150627]
[1753362442573,1e-08,186.34,186.33,60.67150627]
[1753362442868,1e-08,186.34,186.33,87.65582941]
[1753362443076,1e-08,186.34,186.33,96.2612049]
[1753362443282,1e-08,186.34,186.33,96.54552804]
[1753362443462,1e-08,186.34,186.33,70.54552804]
[1753362444270,1e-08,186.34,186.33,71.08221027]
[1753362445545,1e-08,186.34,186.33,79.9719089]
[1753362446054,0.2,186.38,186.37,43.06900711]
[1753362446253,0.2,186.38,186.37,90.99527278]
[1753362446453,0.2,186.38,186.37,91.69527278]
[1753362446851,1e-08,186.42,186.39,18.45118397]
[1753362447079,0.03,186.52,186.49,26.0]
[1753362447284,0.03,186.52,186.51,17.06900711]
[1753362448152,0.03,186.52,186.51,25.95870574]
[1753362448363,0.03,186.52,186.5,5.89812331]
[1753362448572,0.03,186.52,186.51,64.5]
[1753362449164,14.54115024,186.52,186.46,43.06900711]
[1753362449374,14.54115024,186.52,186.47,38.52]
[1753362449375,0.29,186.52,186.47,38.52]
[1753362449673,0.03,186.52,186.49,0.28432314]
[1753362449862,0.03,186.52,186.51,17.06900711]
[1753362450062,0.03,186.52,186.51,25.95870574]
[1753362450266,0.03,186.52,186.51,64.54]
[1753362450657,14.54105398,186.52,186.42,0.7]
[1753362450974,0.03,186.46,186.45,26.0]
[1753362451179,0.03,186.46,186.45,79.09738996]
[1753362451483,0.03,186.46,186.45,79.79738996]
[1753362453681,0.03,186.46,186.45,96.58207393]
[1753362453881,0.03,186.46,186.45,97.11841074]
[1753362454085,0.03,186.52,186.49,26.0]
[1753362454275,0.03,186.52,186.51,17.06900711]
[1753362454467,0.03,186.52,186.5,38.54]
[1753362454666,8.91969863,186.52,186.5,38.54]
[1753362454880,8.91969863,186.52,186.49,64.54]
[1753362455088,0.03,186.52,186.51,26.0]
[1753362455474,0.03,186.52,186.42,16.78468397]
[1753362455475,9.17969863,186.52,186.42,16.78468397]
[1753362455784,8.88969863,186.46,186.43,38.54]
[1753362455964,0.26,186.49,186.46,26.0]
[1753362456168,0.26,186.49,186.43,38.54]
[1753362456169,8.88969863,186.47,186.43,38.54]
[1753362457485,8.88969863,186.46,186.43,43.90389811]
[1753362458181,8.88969863,186.46,186.43,38.54]
[1753362458383,8.88969863,186.44,186.43,26.0]
[1753362458687,9.14969863,186.44,186.36,5.36589776]
[1753362458986,18.76890586,186.48,186.36,5.36589776]
[1753362458987,8.88969863,186.4,186.39,26.0]
[1753362459166,8.88969863,186.41,186.4,26.0]
[1753362459370,0.26,186.46,186.4,26.0]
[1753362459683,0.26,186.46,186.4,31.36480679]
[1753362459684,8.88969863,186.44,186.4,31.36480679]
[1753362459877,0.26,186.5,186.42,17.06900711]
[1753362460180,0.26,186.5,186.47,26.0]
[1753362460181,8.88969863,186.5,186.47,26.0]
[1753362460585,8.88969863,186.5,186.45,39.07633681]
[1753362460586,8.88969863,186.48,186.45,38.54]
[1753362461582,8.88969863,186.51,186.46,18.30531516]
[1753362461759,8.88969863,186.51,186.47,39.24]
[1753362461965,8.88969863,186.51,186.48,17.06900711]
[1753362462478,8.91969863,186.52,186.49,38.54]
[1753362463487,0.03,186.52,186.5,5.36193029]
[1753362463682,0.03,186.52,186.5,6.06193029]
[1753362463862,0.03,186.52,186.49,43.9021623]
[1753362464184,0.03,186.52,186.5,17.06900711]
[1753362464876,8.88969863,186.51,186.49,38.54]
[1753362465077,8.88969863,186.51,186.5,26.0]
[1753362465280,8.88969863,186.51,186.4,6.06480686]
[1753362465281,9.14969863,186.51,186.4,6.06480686]
[1753362465582,8.88969863,186.46,186.43,16.78468397]
[1753362465756,5.36202762,186.5,186.43,16.78468397]
[1753362465959,8.88969863,186.46,186.45,26.0]
[1753362466673,8.88969863,186.46,186.41,5.36448864]
[1753362466878,8.88969863,186.42,186.41,55.34468397]
[1753362467079,8.88969863,186.43,186.41,81.34468397]
[1753362467393,8.88969863,186.42,186.41,55.62900711]
[1753362467572,8.88969863,186.42,186.41,38.56]
[1753362468192,8.88969863,186.42,186.39,55.62900711]
[1753362468497,8.88969863,186.41,186.39,38.56]
[1753362469359,0.26,186.46,186.39,39.26]
[1753362469588,8.15961918,186.49,186.41,17.06900711]
[1753362469886,0.26,186.48,186.42,38.54]
[1753362470084,8.88969863,186.43,186.33,16.84468397]
[1753362470286,8.88969863,186.38,186.35,16.78468397]
[1753362470471,0.26,186.43,186.35,16.78468397]
[1753362470879,8.88969863,186.37,186.35,42.78468397]
[1753362471079,8.88969863,186.36,186.34,38.56]
[1753362471282,8.88969863,186.35,186.34,38.56]
[1753362471867,8.88969863,186.35,186.33,0.06]
[1753362472068,8.88969863,186.34,186.33,0.06]
[1753362472282,8.88969863,186.35,186.33,5.42678971]
[1753362472967,5.62486568,186.4,186.34,26.0]
[1753362473181,8.88969863,186.35,186.34,26.0]
[1753362473776,8.88969863,186.35,186.33,0.06]
[1753362473777,9.14969863,186.35,186.33,0.06]
[1753362473987,9.14969863,186.34,186.33,0.06]
[1753362474584,8.88969863,186.34,186.33,0.06]
[1753362474985,18.03939726,186.34,186.33,0.06]
[1753362475196,18.03939726,186.34,186.29,0.06]
[1753362475402,8.88969863,186.3,186.29,0.06]
[1753362476303,9.14969863,186.3,186.29,0.06]
[1753362476601,14.51738515,186.3,186.29,0.06]
[1753362476777,9.14969863,186.3,186.29,0.06]
[1753362476979,14.51738515,186.3,186.29,0.06]
[1753362477674,9.14969863,186.3,186.29,0.06]
[1753362478004,1.5528,186.37,186.29,0.06]
[1753362478298,8.88969863,186.3,186.29,0.06]
[1753362478679,8.88969863,186.31,186.29,0.76]
[1753362478877,1.5528,186.37,186.29,0.06]
[1753362479092,8.88969863,186.32,186.3,0.7]
[1753362479389,8.88969863,186.33,186.31,26.7]
[1753362479575,8.88969863,186.32,186.31,26.0]
[1753362481002,8.88969863,186.32,186.31,32.06739842]
[1753362481179,8.88969863,186.34,186.31,48.85208239]
[1753362481382,0.26,186.41,186.32,17.76900711]
[1753362481590,8.88969863,186.37,186.32,17.76900711]
[1753362481790,8.88969863,186.37,186.35,26.0]
[1753362482108,1.6453,186.44,186.37,5.36567044]
[1753362482306,8.88969863,186.4,186.38,0.7]
[1753362482902,8.88969863,186.41,186.38,0.7]
[1753362483094,6.8225,186.46,186.39,0.7]
[1753362483095,8.88969863,186.42,186.39,0.7]
[1753362484209,8.88969863,186.42,186.4,5.36480686]
[1753362484399,8.88969863,186.42,186.4,6.06480686]
[1753362484915,8.88969863,186.43,186.4,5.36480686]
[1753362485588,8.88969863,186.41,186.34,8.88969863]
[1753362485790,8.88969863,186.35,186.3,9.58969863]
[1753362486023,8.88969863,186.34,186.32,16.78468397]
[1753362486307,8.88969863,186.35,186.33,31.3668223]
[1753362486528,5.36394357,186.43,186.34,0.7]
[1753362486691,8.88969863,186.35,186.29,0.76]
[1753362486892,8.88969863,186.31,186.29,17.12900711]
[1753362487136,0.26,186.37,186.29,17.12900711]
[1753362487137,0.26,186.37,186.29,5.42790171]
[1753362487289,1.5953,186.39,186.29,5.42790171]
[1753362487290,8.88969863,186.33,186.29,22.91258568]
[1753362487619,8.88969863,186.32,186.29,48.21258568]
[1753362487986,8.88969863,186.31,186.29,26.06]
[1753362488191,8.88969863,186.3,186.29,0.06]
[1753362488894,0.26,186.37,186.29,0.75]
[1753362489102,38.64,186.38,186.29,0.75]
[1753362489302,8.88969863,186.34,186.31,26.0]
[1753362489505,8.88969863,186.33,186.31,26.0]
[1753362489703,8.88969863,186.32,186.29,64.7]
[1753362489996,8.88969863,186.3,186.29,64.7]
[1753362490507,8.88969863,186.31,186.29,70.75797466]
[1753362490707,8.88969863,186.32,186.3,0.69]
[1753362490914,8.88969863,186.33,186.31,0.69]
[1753362491509,8.88969863,186.32,186.31,26.0]
[1753362491709,8.88969863,186.32,186.29,44.06797466]
[1753362491910,8.88969863,186.3,186.29,64.7]
[1753362492219,8.88969863,186.31,186.29,64.7]
[1753362492421,8.88969863,186.31,186.29,70.75797179]
[1753362493120,5.36629644,186.35,186.29,70.75797179]
[1753362493319,46.80439572,186.38,186.29,70.75797179]
[1753362493496,8.88969863,186.33,186.29,70.75797179]
[1753362493702,8.88969863,186.32,186.29,70.75797179]
[1753362494223,8.88969863,186.31,186.29,70.75797179]
[1753362494409,8.88969863,186.31,186.29,64.7]
[1753362494597,8.88969863,186.31,186.29,70.06791609]
[1753362495311,38.64,186.38,186.29,70.06791609]
[1753362495312,8.88969863,186.32,186.3,0.69]
[1753362495507,8.88969863,186.33,186.3,0.97432314]
[1753362495708,2.79863024,186.39,186.33,26.0]
[1753362496022,8.88969863,186.37,186.34,17.75900711]
[1753362496318,8.88969863,186.38,186.35,6.05615142]
[1753362496822,8.88969863,186.37,186.35,6.05615142]
[1753362497722,8.88969863,186.36,186.33,38.62]
[1753362497925,5.3651544,186.39,186.31,5.36731051]
[1753362497926,8.88969863,186.34,186.31,38.62]
[1753362498231,8.88969863,186.32,186.29,86.83259189]
[1753362498421,8.88969863,186.31,186.29,81.46468397]
[1753362498930,8.88969863,186.32,186.29,86.83262581]
[1753362499505,8.88969863,186.32,186.29,87.52262581]
[1753362501520,8.88969863,186.32,186.29,86.83262581]
[1753362501710,5.36638749,186.35,186.29,86.83262581]
[1753362501910,8.88969863,186.31,186.29,86.83262581]
[1753362502111,8.88969863,186.3,186.29,64.68]
[1753362502306,8.88969863,186.3,186.29,26.06]
[1753362502518,8.88969863,186.3,186.29,0.06]
[1753362503021,8.88969863,186.3,186.29,5.42797466]
[1753362503332,8.88969863,186.3,186.29,6.11797466]
[1753362503637,8.88969863,186.3,186.29,0.06]
[1753362503835,8.88969863,186.31,186.29,0.06]
[1753362504134,8.88969863,186.32,186.3,0.69]
[1753362505111,8.88969863,186.32,186.3,6.05757989]
[1753362505312,5.36603262,186.36,186.3,6.05757989]
[1753362505617,8.88969863,186.33,186.3,32.05757989]
[1753362505934,8.88969863,186.35,186.31,0.97432314]
[1753362506179,8.88969863,186.37,186.34,26.0]
[1753362506309,5.39473253,186.41,186.34,26.0]
[1753362506310,8.88969863,186.38,186.34,26.0]
[1753362506504,5.39473253,186.41,186.34,26.0]
[1753362506505,8.88969863,186.37,186.35,0.69]
[1753362507128,8.88969863,186.39,186.36,5.36595836]
[1753362507331,8.88969863,186.39,186.36,6.05595836]
[1753362507628,8.88969863,186.37,186.35,38.56]
[1753362507811,8.88969863,186.36,186.33,38.56]
[1753362508008,8.88969863,186.34,186.3,38.84432314]
[1753362508229,8.88969863,186.32,186.3,64.70216157]